[Event "Early-Titled-Tuesday-Blitz-March-26-2024"]
[Site "Chess.com"]
[Date "2024.03.26"]
[Round "5"]
[White "GMT4114"]
[Black "BestestBP"]
[Result "0-1"]
[WhiteElo "1966"]
[BlackElo "2228"]
[TimeControl "180+1"]
[EndTime "8:54:04 PDT"]
[Termination "BestestBP won on time"]

1. e4 {[%clk 0:03:00.9]} 1... e5 {[%clk 0:02:59.3]} 2. Bc4 {[%clk 0:03:00.1]}
2... Nf6 {[%clk 0:02:57.2]} 3. d3 {[%clk 0:03:00.2]} 3... c6 {[%clk 0:02:56.5]}
4. Nf3 {[%clk 0:02:52.1]} 4... d5 {[%clk 0:02:56.3]} 5. Bb3 {[%clk 0:02:44.9]}
5... Bd6 {[%clk 0:02:31.3]} 6. Nc3 {[%clk 0:02:43.2]} 6... d4 {[%clk 0:02:24.4]}
7. Ne2 {[%clk 0:02:43.1]} 7... Bg4 {[%clk 0:02:17.7]} 8. Ng3 {[%clk 0:02:27.9]}
8... O-O {[%clk 0:02:14.1]} 9. h3 {[%clk 0:02:27.7]} 9... Be6 {[%clk 0:02:10.2]}
10. O-O {[%clk 0:02:23.6]} 10... Qd7 {[%clk 0:02:02.8]} 11. Ng5 {[%clk
0:02:05.6]} 11... Bxb3 {[%clk 0:01:54.3]} 12. axb3 {[%clk 0:02:06.5]} 12... h6
{[%clk 0:01:53.9]} 13. Nf3 {[%clk 0:02:05.7]} 13... Kh7 {[%clk 0:01:38]} 14. Nf5
{[%clk 0:02:01.6]} 14... Re8 {[%clk 0:01:33.1]} 15. Nxd6 {[%clk 0:01:49.1]}
15... Qxd6 {[%clk 0:01:26.5]} 16. Nh4 {[%clk 0:01:49.7]} 16... g6 {[%clk
0:01:21.5]} 17. Qf3 {[%clk 0:01:49.3]} 17... Qe7 {[%clk 0:01:14.7]} 18. g3
{[%clk 0:01:39.1]} 18... Nbd7 {[%clk 0:01:12.5]} 19. Bd2 {[%clk 0:01:27.9]}
19... Ng8 {[%clk 0:01:05.8]} 20. Qg2 {[%clk 0:01:18]} 20... Rf8 {[%clk
0:00:58.9]} 21. Rae1 {[%clk 0:01:10]} 21... Rae8 {[%clk 0:00:46.8]} 22. Nf3
{[%clk 0:00:56.2]} 22... Qd6 {[%clk 0:00:39.4]} 23. Nh2 {[%clk 0:00:43.8]} 23...
f5 {[%clk 0:00:34.3]} 24. f4 {[%clk 0:00:41.4]} 24... fxe4 {[%clk 0:00:22.9]}
25. Rxe4 {[%clk 0:00:37.3]} 25... exf4 {[%clk 0:00:20.7]} 26. Rxe8 {[%clk
0:00:30.9]} 26... Rxe8 {[%clk 0:00:20.4]} 27. Bxf4 {[%clk 0:00:29.4]} 27... Qc5
{[%clk 0:00:20.9]} 28. Nf3 {[%clk 0:00:24.4]} 28... Ngf6 {[%clk 0:00:20.3]} 29.
Bc1 {[%clk 0:00:15.1]} 29... Nd5 {[%clk 0:00:20.6]} 30. Kh2 {[%clk 0:00:13]}
30... N7f6 {[%clk 0:00:20.1]} 31. Nh4 {[%clk 0:00:08.8]} 31... Qd6 {[%clk
0:00:19]} 32. Bf4 {[%clk 0:00:05.6]} 32... Nxf4 {[%clk 0:00:18.1]} 33. Rxf4
{[%clk 0:00:05.7]} 33... g5 {[%clk 0:00:12.7]} 0-1

[Event "Early-Titled-Tuesday-Blitz-March-26-2024"]
[Site "Chess.com"]
[Date "2024.03.26"]
[Round "5"]
[White "Matibar"]
[Black "FGHSMN"]
[Result "0-1"]
[WhiteElo "2732"]
[BlackElo "2964"]
[TimeControl "180+1"]
[EndTime "8:54:05 PDT"]
[Termination "FGHSMN won by resignation"]

1. e4 {[%clk 0:03:00.9]} 1... e5 {[%clk 0:02:39.4]} 2. Nf3 {[%clk 0:02:39.7]}
2... Nc6 {[%clk 0:02:38.9]} 3. Bb5 {[%clk 0:02:38.8]} 3... Nge7 {[%clk
0:02:37.5]} 4. Nc3 {[%clk 0:02:36.2]} 4... Ng6 {[%clk 0:02:37.1]} 5. d3 {[%clk
0:02:29.3]} 5... Bc5 {[%clk 0:02:33.2]} 6. Be3 {[%clk 0:02:27.6]} 6... Bxe3
{[%clk 0:02:29.6]} 7. fxe3 {[%clk 0:02:28.5]} 7... O-O {[%clk 0:02:29.6]} 8. O-O
{[%clk 0:02:28.4]} 8... d6 {[%clk 0:02:30.2]} 9. Qe1 {[%clk 0:02:19.4]} 9... Kh8
{[%clk 0:02:23]} 10. d4 {[%clk 0:02:14.5]} 10... Nce7 {[%clk 0:02:15.2]} 11. Rd1
{[%clk 0:02:13.4]} 11... c6 {[%clk 0:02:14.8]} 12. Bd3 {[%clk 0:02:11.4]} 12...
b5 {[%clk 0:02:06.6]} 13. dxe5 {[%clk 0:01:53.7]} 13... dxe5 {[%clk 0:01:39.8]}
14. Bxb5 {[%clk 0:01:52.5]} 14... Qb6 {[%clk 0:01:40.4]} 15. Bc4 {[%clk
0:01:51.7]} 15... f6 {[%clk 0:01:11.5]} 16. Na4 {[%clk 0:01:48.3]} 16... Qc7
{[%clk 0:01:09.2]} 17. Qb4 {[%clk 0:01:38.6]} 17... Bg4 {[%clk 0:01:09]} 18. Qd6
{[%clk 0:01:37.6]} 18... Qa5 {[%clk 0:01:06.1]} 19. b3 {[%clk 0:01:36.8]} 19...
f5 {[%clk 0:00:56.7]} 20. Qc5 {[%clk 0:01:20.8]} 20... Qc7 {[%clk 0:00:55]} 21.
Nc3 {[%clk 0:01:15]} 21... f4 {[%clk 0:00:29.5]} 22. exf4 {[%clk 0:00:57.8]}
22... Nxf4 {[%clk 0:00:30.4]} 23. Nxe5 {[%clk 0:00:35.3]} 23... Bxd1 {[%clk
0:00:29.2]} 24. Rxd1 {[%clk 0:00:36.2]} 24... Neg6 {[%clk 0:00:24.7]} 25. Nxg6+
{[%clk 0:00:31]} 25... Nxg6 {[%clk 0:00:25.6]} 26. Qe3 {[%clk 0:00:20.9]} 26...
Qe5 {[%clk 0:00:23.1]} 27. Ne2 {[%clk 0:00:20.4]} 27... Rae8 {[%clk 0:00:21.9]}
28. Bd3 {[%clk 0:00:20.6]} 28... a5 {[%clk 0:00:19.8]} 29. g3 {[%clk 0:00:19.5]}
29... Qh5 {[%clk 0:00:18.5]} 30. Rf1 {[%clk 0:00:17.9]} 30... Ne5 {[%clk
0:00:18.7]} 31. Nf4 {[%clk 0:00:16]} 31... Qh6 {[%clk 0:00:18.3]} 32. Qe2 {[%clk
0:00:15.6]} 32... g5 {[%clk 0:00:18.1]} 33. Nh5 {[%clk 0:00:13]} 33... Rxf1+
{[%clk 0:00:16.2]} 34. Kxf1 {[%clk 0:00:13.9]} 34... Rf8+ {[%clk 0:00:16.4]} 35.
Ke1 {[%clk 0:00:14]} 35... Nf3+ {[%clk 0:00:16.4]} 36. Kd1 {[%clk 0:00:13.1]}
36... Qxh5 {[%clk 0:00:17]} 37. Kc1 {[%clk 0:00:12]} 37... Qxh2 {[%clk 0:00:17]}
38. Qe3 {[%clk 0:00:11.7]} 38... Qg1+ {[%clk 0:00:17.6]} 0-1

[Event "Early-Titled-Tuesday-Blitz-March-26-2024"]
[Site "Chess.com"]
[Date "2024.03.26"]
[Round "5"]
[White "VladimirKramnik"]
[Black "amiralfio"]
[Result "1-0"]
[WhiteElo "3000"]
[BlackElo "2746"]
[TimeControl "180+1"]
[EndTime "8:54:06 PDT"]
[Termination "VladimirKramnik won on time"]

1. e4 {[%clk 0:03:00.9]} 1... e6 {[%clk 0:03:00.1]} 2. d4 {[%clk 0:02:59.3]}
2... d5 {[%clk 0:03:00.4]} 3. exd5 {[%clk 0:02:59.4]} 3... exd5 {[%clk
0:03:00.6]} 4. Nf3 {[%clk 0:03:00]} 4... Nc6 {[%clk 0:02:58.2]} 5. Nc3 {[%clk
0:02:54.1]} 5... Nf6 {[%clk 0:02:56.1]} 6. Bb5 {[%clk 0:02:52.4]} 6... Bd6
{[%clk 0:02:55.1]} 7. Bg5 {[%clk 0:02:47]} 7... Be6 {[%clk 0:02:28.8]} 8. Ne5
{[%clk 0:02:41.3]} 8... O-O {[%clk 0:02:06.4]} 9. Nxc6 {[%clk 0:02:40.3]} 9...
bxc6 {[%clk 0:02:06.7]} 10. Bxc6 {[%clk 0:02:40.9]} 10... Rb8 {[%clk 0:02:04.3]}
11. O-O {[%clk 0:02:40.9]} 11... Rxb2 {[%clk 0:01:45.9]} 12. h3 {[%clk
0:02:18.6]} 12... h6 {[%clk 0:01:39.3]} 13. Bxf6 {[%clk 0:02:08.3]} 13... Qxf6
{[%clk 0:01:40.2]} 14. Bxd5 {[%clk 0:02:06.2]} 14... Rd8 {[%clk 0:00:33.5]} 15.
Bxe6 {[%clk 0:01:49]} 15... Qxe6 {[%clk 0:00:34.4]} 16. Qd3 {[%clk 0:01:40.2]}
16... c5 {[%clk 0:00:28.4]} 17. Rfe1 {[%clk 0:01:30.8]} 17... Qg6 {[%clk
0:00:18.9]} 18. Qxg6 {[%clk 0:01:02.9]} 18... fxg6 {[%clk 0:00:19.8]} 19. dxc5
{[%clk 0:01:03.2]} 19... Bxc5 {[%clk 0:00:19.6]} 20. Re2 {[%clk 0:01:03.6]}
20... Kh7 {[%clk 0:00:12.4]} 21. Na4 {[%clk 0:01:00.1]} 21... Rb5 {[%clk
0:00:12.3]} 22. c4 {[%clk 0:00:58.9]} 22... Ra5 {[%clk 0:00:12]} 23. Nxc5 {[%clk
0:00:58.4]} 23... Rxc5 {[%clk 0:00:12.9]} 24. Rc1 {[%clk 0:00:58.4]} 24... Rb8
{[%clk 0:00:12.7]} 25. g3 {[%clk 0:00:42.7]} 25... Rb4 {[%clk 0:00:12.7]} 26.
Rec2 {[%clk 0:00:42.2]} 26... a5 {[%clk 0:00:12.4]} 27. h4 {[%clk 0:00:41.7]}
27... g5 {[%clk 0:00:08]} 28. hxg5 {[%clk 0:00:40.3]} 28... hxg5 {[%clk
0:00:08.9]} 29. Kf1 {[%clk 0:00:39.9]} 29... a4 {[%clk 0:00:08.3]} 30. Ke2
{[%clk 0:00:39.9]} 30... Kg6 {[%clk 0:00:04.9]} 31. Kd3 {[%clk 0:00:39.9]} 31...
Rb7 {[%clk 0:00:04.8]} 32. Kd4 {[%clk 0:00:38.9]} 32... Rbc7 {[%clk 0:00:03.7]}
33. Rb1 {[%clk 0:00:35]} 33... Rf5 {[%clk 0:00:02.6]} 34. Rb6+ {[%clk
0:00:22.6]} 34... Kh7 {[%clk 0:00:01.9]} 35. c5 {[%clk 0:00:22.1]} 35... Rd7+
{[%clk 0:00:01.6]} 36. Rd6 {[%clk 0:00:20.3]} 1-0

[Event "Early-Titled-Tuesday-Blitz-March-26-2024"]
[Site "Chess.com"]
[Date "2024.03.26"]
[Round "5"]
[White "Kazmin_Semyon"]
[Black "Kirill_Klukin"]
[Result "1-0"]
[WhiteElo "2594"]
[BlackElo "2830"]
[TimeControl "180+1"]
[EndTime "8:54:07 PDT"]
[Termination "Kazmin_Semyon won by resignation"]

1. e4 {[%clk 0:03:00.9]} 1... c5 {[%clk 0:02:58.6]} 2. Nf3 {[%clk 0:02:59.7]}
2... g6 {[%clk 0:02:59.1]} 3. d4 {[%clk 0:02:59]} 3... cxd4 {[%clk 0:03:00]} 4.
Nxd4 {[%clk 0:02:59.9]} 4... Bg7 {[%clk 0:03:00.3]} 5. Nc3 {[%clk 0:03:00.6]}
5... Nc6 {[%clk 0:03:00.8]} 6. Be3 {[%clk 0:03:01.2]} 6... Nf6 {[%clk
0:03:01.4]} 7. Bc4 {[%clk 0:03:01.9]} 7... O-O {[%clk 0:03:01.5]} 8. Bb3 {[%clk
0:03:02.6]} 8... Re8 {[%clk 0:03:02.2]} 9. f3 {[%clk 0:03:01.4]} 9... e6 {[%clk
0:03:01.1]} 10. f4 {[%clk 0:03:01.4]} 10... e5 {[%clk 0:02:53.1]} 11. fxe5
{[%clk 0:02:36.4]} 11... Nxe5 {[%clk 0:02:41.2]} 12. O-O {[%clk 0:02:33.5]}
12... Neg4 {[%clk 0:02:22]} 13. Bg5 {[%clk 0:02:28.3]} 13... h6 {[%clk 0:02:08]}
14. Bh4 {[%clk 0:01:45]} 14... Ne3 {[%clk 0:01:52.4]} 15. Qf3 {[%clk 0:01:07.2]}
15... Nxf1 {[%clk 0:01:52]} 16. Rxf1 {[%clk 0:01:08.1]} 16... g5 {[%clk
0:01:52.1]} 17. Nf5 {[%clk 0:00:25]} 17... d5 {[%clk 0:01:41.9]} 18. Nxg7 {[%clk
0:00:20.5]} 18... Kxg7 {[%clk 0:01:40.9]} 19. Nxd5 {[%clk 0:00:21.2]} 19... Nxd5
{[%clk 0:00:56.2]} 20. Qxf7+ {[%clk 0:00:21]} 20... Kh8 {[%clk 0:00:56.8]} 21.
Bxd5 {[%clk 0:00:19.4]} 21... Be6 {[%clk 0:00:57.2]} 22. Bxe6 {[%clk 0:00:11.8]}
22... Qb6+ {[%clk 0:00:57.2]} 23. Bf2 {[%clk 0:00:10.5]} 23... Qxb2 {[%clk
0:00:23.9]} 24. Qg6 {[%clk 0:00:10.1]} 24... Qg7 {[%clk 0:00:22.9]} 25. Qxg7+
{[%clk 0:00:08]} 25... Kxg7 {[%clk 0:00:23.8]} 26. Bd4+ {[%clk 0:00:08.9]} 26...
Kh7 {[%clk 0:00:24.5]} 27. Rf7+ {[%clk 0:00:08.2]} 27... Kg8 {[%clk 0:00:20.5]}
28. Bd5 {[%clk 0:00:05.2]} 28... Rad8 {[%clk 0:00:17.4]} 29. Rg7+ {[%clk
0:00:05.5]} 29... Kf8 {[%clk 0:00:17.9]} 30. Rxb7 {[%clk 0:00:04.6]} 30... Rxe4
{[%clk 0:00:12.1]} 31. Bg7+ {[%clk 0:00:03.7]} 31... Ke8 {[%clk 0:00:11.3]} 32.
Bc6+ {[%clk 0:00:04.3]} 32... Rd7 {[%clk 0:00:10.3]} 33. Bxd7+ {[%clk
0:00:04.9]} 33... Kd8 {[%clk 0:00:10.7]} 34. Bf6+ {[%clk 0:00:05.5]} 1-0

[Event "Early-Titled-Tuesday-Blitz-March-26-2024"]
[Site "Chess.com"]
[Date "2024.03.26"]
[Round "5"]
[White "DenLaz"]
[Black "KuzubovYuriy"]
[Result "1/2-1/2"]
[WhiteElo "3088"]
[BlackElo "2924"]
[TimeControl "180+1"]
[EndTime "8:54:08 PDT"]
[Termination "Game drawn by repetition"]

1. d4 {[%clk 0:03:00.9]} 1... d5 {[%clk 0:03:00.1]} 2. c4 {[%clk 0:03:00.6]}
2... e6 {[%clk 0:03:00.7]} 3. Nf3 {[%clk 0:03:01.3]} 3... Nf6 {[%clk 0:03:00.1]}
4. g3 {[%clk 0:03:02]} 4... Be7 {[%clk 0:02:52]} 5. Bg2 {[%clk 0:03:02.3]} 5...
O-O {[%clk 0:02:52.7]} 6. O-O {[%clk 0:03:03]} 6... dxc4 {[%clk 0:02:53]} 7. Qc2
{[%clk 0:03:03.3]} 7... a6 {[%clk 0:02:53.2]} 8. a4 {[%clk 0:03:03.8]} 8... Bd7
{[%clk 0:02:53.6]} 9. Qxc4 {[%clk 0:03:04.4]} 9... Bc6 {[%clk 0:02:53.6]} 10.
Bg5 {[%clk 0:03:05]} 10... Bd5 {[%clk 0:02:47.4]} 11. Qc2 {[%clk 0:03:04.2]}
11... Be4 {[%clk 0:02:46.2]} 12. Qc1 {[%clk 0:03:04.3]} 12... h6 {[%clk
0:02:40.1]} 13. Bxf6 {[%clk 0:03:04]} 13... Bxf6 {[%clk 0:02:41]} 14. Nbd2
{[%clk 0:03:04.5]} 14... Bxf3 {[%clk 0:02:40]} 15. Nxf3 {[%clk 0:03:04.4]} 15...
Nc6 {[%clk 0:02:40]} 16. e3 {[%clk 0:03:04.7]} 16... Nb4 {[%clk 0:02:09.5]} 17.
Rd1 {[%clk 0:03:02.5]} 17... a5 {[%clk 0:02:07.9]} 18. Nd2 {[%clk 0:02:54.7]}
18... c6 {[%clk 0:02:05.8]} 19. Nc4 {[%clk 0:02:53.4]} 19... Qe7 {[%clk
0:02:03.1]} 20. Qd2 {[%clk 0:02:53]} 20... Rfd8 {[%clk 0:01:58]} 21. Qe2 {[%clk
0:02:50.4]} 21... g6 {[%clk 0:01:47.5]} 22. Rac1 {[%clk 0:02:41.7]} 22... Bg7
{[%clk 0:01:45.5]} 23. b3 {[%clk 0:02:35.1]} 23... h5 {[%clk 0:01:41.4]} 24. Rd2
{[%clk 0:02:31]} 24... e5 {[%clk 0:01:31.2]} 25. dxe5 {[%clk 0:02:28.7]} 25...
Rxd2 {[%clk 0:01:26.7]} 26. Qxd2 {[%clk 0:02:28.1]} 26... Bxe5 {[%clk 0:01:27]}
27. Rd1 {[%clk 0:02:27.4]} 27... Bc7 {[%clk 0:01:23.3]} 28. Qd7 {[%clk
0:02:24.1]} 28... Qxd7 {[%clk 0:01:20.8]} 29. Rxd7 {[%clk 0:02:25]} 29... Na6
{[%clk 0:01:20.4]} 30. Bf1 {[%clk 0:02:13.3]} 30... Kf8 {[%clk 0:01:15.7]} 31.
Be2 {[%clk 0:01:24.3]} 31... Rd8 {[%clk 0:01:11.2]} 32. Rxd8+ {[%clk 0:01:18.1]}
32... Bxd8 {[%clk 0:01:12.1]} 33. Kf1 {[%clk 0:01:11.7]} 33... Nc5 {[%clk
0:01:11.4]} 34. Bd1 {[%clk 0:01:12.3]} 34... Ke7 {[%clk 0:01:10.7]} 35. Bc2
{[%clk 0:01:11.4]} 35... Bc7 {[%clk 0:01:08.2]} 36. Ke2 {[%clk 0:01:11.9]} 36...
Na6 {[%clk 0:00:54.3]} 37. f4 {[%clk 0:01:10.7]} 37... Nb4 {[%clk 0:00:49.8]}
38. Bb1 {[%clk 0:01:10.7]} 38... Nd5 {[%clk 0:00:48.3]} 39. Kf3 {[%clk
0:01:08.5]} 39... b5 {[%clk 0:00:45.4]} 40. Nd2 {[%clk 0:00:50.1]} 40... Nc3
{[%clk 0:00:44.1]} 41. Bc2 {[%clk 0:00:50.7]} 41... Bd6 {[%clk 0:00:41.4]} 42.
Ne4 {[%clk 0:00:48.1]} 42... Nxe4 {[%clk 0:00:40.9]} 43. Bxe4 {[%clk 0:00:49]}
43... bxa4 {[%clk 0:00:40.1]} 44. bxa4 {[%clk 0:00:49]} 44... c5 {[%clk
0:00:33.1]} 45. Bd5 {[%clk 0:00:49.4]} 45... f6 {[%clk 0:00:31.6]} 46. h4 {[%clk
0:00:48.3]} 46... Kf8 {[%clk 0:00:30]} 47. Ke2 {[%clk 0:00:48]} 47... f5 {[%clk
0:00:28.8]} 48. Kd3 {[%clk 0:00:47.7]} 48... c4+ {[%clk 0:00:25.2]} 49. Bxc4
{[%clk 0:00:44.2]} 49... Bc5 {[%clk 0:00:22]} 50. Ke2 {[%clk 0:00:44.6]} 50...
Ke7 {[%clk 0:00:21.8]} 51. Kf3 {[%clk 0:00:44.8]} 51... Kf6 {[%clk 0:00:22.1]}
52. Bd3 {[%clk 0:00:44.8]} 52... Bb6 {[%clk 0:00:22.2]} 53. e4 {[%clk
0:00:44.9]} 53... fxe4+ {[%clk 0:00:23.1]} 54. Bxe4 {[%clk 0:00:45.8]} 54... Bc5
{[%clk 0:00:23.5]} 55. g4 {[%clk 0:00:46.2]} 55... hxg4+ {[%clk 0:00:23.7]} 56.
Kxg4 {[%clk 0:00:47.1]} 56... Bb4 {[%clk 0:00:23.9]} 57. f5 {[%clk 0:00:46.1]}
57... gxf5+ {[%clk 0:00:24.2]} 58. Bxf5 {[%clk 0:00:47]} 58... Kg7 {[%clk
0:00:24.8]} 59. h5 {[%clk 0:00:47.7]} 59... Kh8 {[%clk 0:00:25.4]} 60. Bd7
{[%clk 0:00:48.2]} 60... Bc3 {[%clk 0:00:25.8]} 61. Bb5 {[%clk 0:00:49.1]} 61...
Bb4 {[%clk 0:00:26.5]} 62. Bc4 {[%clk 0:00:50]} 62... Bc3 {[%clk 0:00:27.1]} 63.
Bb5 {[%clk 0:00:50.9]} 63... Bb4 {[%clk 0:00:27.9]} 64. Bc4 {[%clk 0:00:51.8]}
64... Bc3 {[%clk 0:00:28.7]} 65. Bb5 {[%clk 0:00:52.7]} 1/2-1/2

[Event "Early-Titled-Tuesday-Blitz-March-26-2024"]
[Site "Chess.com"]
[Date "2024.03.26"]
[Round "5"]
[White "theoneandonlydaaevik"]
[Black "Kacparov"]
[Result "0-1"]
[WhiteElo "2539"]
[BlackElo "2887"]
[TimeControl "180+1"]
[EndTime "8:54:08 PDT"]
[Termination "Kacparov won on time"]

1. Nf3 {[%clk 0:02:54.5]} 1... d5 {[%clk 0:03:00.2]} 2. g3 {[%clk 0:02:53.9]}
2... c6 {[%clk 0:03:00.7]} 3. Bg2 {[%clk 0:02:54.2]} 3... Bg4 {[%clk 0:03:01]}
4. O-O {[%clk 0:02:54.2]} 4... Nd7 {[%clk 0:03:01.6]} 5. h3 {[%clk 0:02:54.8]}
5... Bxf3 {[%clk 0:03:01.4]} 6. Bxf3 {[%clk 0:02:54.7]} 6... e6 {[%clk
0:03:01.9]} 7. d3 {[%clk 0:02:55.3]} 7... Ngf6 {[%clk 0:03:02.6]} 8. c4 {[%clk
0:02:55.5]} 8... Bd6 {[%clk 0:03:02.6]} 9. cxd5 {[%clk 0:02:52.6]} 9... exd5
{[%clk 0:03:02.6]} 10. Nc3 {[%clk 0:02:31.9]} 10... O-O {[%clk 0:03:02.3]} 11.
e4 {[%clk 0:02:29.1]} 11... dxe4 {[%clk 0:03:02.4]} 12. dxe4 {[%clk 0:02:28]}
12... Qc7 {[%clk 0:03:02.1]} 13. Bg2 {[%clk 0:02:27.4]} 13... Rad8 {[%clk
0:03:01.6]} 14. Qc2 {[%clk 0:02:27.6]} 14... Rfe8 {[%clk 0:02:56.9]} 15. Kh2
{[%clk 0:02:27.6]} 15... h5 {[%clk 0:02:56.1]} 16. f4 {[%clk 0:02:15.4]} 16...
h4 {[%clk 0:02:35.2]} 17. e5 {[%clk 0:02:13.3]} 17... Nxe5 {[%clk 0:02:35.2]}
18. fxe5 {[%clk 0:02:11.5]} 18... Bxe5 {[%clk 0:02:36.1]} 19. Kh1 {[%clk
0:02:07.7]} 19... Nh5 {[%clk 0:02:27.4]} 20. Ne2 {[%clk 0:01:51.8]} 20... Bxg3
{[%clk 0:02:24.3]} 21. Bf3 {[%clk 0:01:48]} 21... Nf6 {[%clk 0:02:20.6]} 22.
Nxg3 {[%clk 0:01:34.9]} 22... Qxg3 {[%clk 0:02:20]} 23. Bg2 {[%clk 0:01:34.5]}
23... Nd5 {[%clk 0:02:11.4]} 24. Qf5 {[%clk 0:01:18.7]} 24... Re7 {[%clk
0:01:50]} 25. Qg5 {[%clk 0:01:02.6]} 25... Rde8 {[%clk 0:01:42.4]} 26. Qxg3
{[%clk 0:00:26.6]} 26... hxg3 {[%clk 0:01:43.3]} 27. Bxd5 {[%clk 0:00:27.3]}
27... cxd5 {[%clk 0:01:43.2]} 28. Bf4 {[%clk 0:00:28]} 28... Re2 {[%clk
0:01:39.6]} 29. Bxg3 {[%clk 0:00:27.5]} 29... R8e3 {[%clk 0:01:36.6]} 30. Rg1
{[%clk 0:00:18.6]} 30... Rxb2 {[%clk 0:01:36.5]} 31. Rad1 {[%clk 0:00:15.7]}
31... Rb5 {[%clk 0:01:24]} 32. Kh2 {[%clk 0:00:08.9]} 32... Kh7 {[%clk
0:01:18.8]} 33. Rg2 {[%clk 0:00:08]} 33... a5 {[%clk 0:01:14.7]} 34. Bf2 {[%clk
0:00:08.2]} 34... Re4 {[%clk 0:01:09.5]} 35. Bd4 {[%clk 0:00:06.6]} 35... f6
{[%clk 0:01:04.2]} 36. Rdg1 {[%clk 0:00:04.1]} 36... Re7 {[%clk 0:01:04.3]} 37.
a4 {[%clk 0:00:03.1]} 37... Rb3 {[%clk 0:01:02.4]} 38. Bc5 {[%clk 0:00:02.4]}
38... Rf7 {[%clk 0:00:59.7]} 39. Rd2 {[%clk 0:00:01.9]} 39... b6 {[%clk
0:00:57.5]} 40. Bd6 {[%clk 0:00:01.5]} 40... Rd7 {[%clk 0:00:48.7]} 41. Rxd5
{[%clk 0:00:02]} 41... Kg8 {[%clk 0:00:45.8]} 42. Rgd1 {[%clk 0:00:01.9]} 42...
Rb2+ {[%clk 0:00:45.1]} 43. Kh1 {[%clk 0:00:01.5]} 43... Ra2 {[%clk 0:00:44.1]}
44. Bb8 {[%clk 0:00:01.4]} 44... Rb7 {[%clk 0:00:39.7]} 0-1

[Event "Early-Titled-Tuesday-Blitz-March-26-2024"]
[Site "Chess.com"]
[Date "2024.03.26"]
[Round "5"]
[White "Aslanov_Umid"]
[Black "SuperJesus88"]
[Result "1-0"]
[WhiteElo "2626"]
[BlackElo "2465"]
[TimeControl "180+1"]
[EndTime "8:54:09 PDT"]
[Termination "Aslanov_Umid won by resignation"]

1. e4 {[%clk 0:03:00.9]} 1... d6 {[%clk 0:02:59.3]} 2. d4 {[%clk 0:03:00.9]}
2... Nf6 {[%clk 0:03:00.2]} 3. Nc3 {[%clk 0:03:01.2]} 3... e5 {[%clk 0:02:58.5]}
4. Nf3 {[%clk 0:03:01.2]} 4... Nbd7 {[%clk 0:02:58.1]} 5. h3 {[%clk 0:02:54]}
5... Be7 {[%clk 0:02:57.3]} 6. Be3 {[%clk 0:02:53.3]} 6... c6 {[%clk 0:02:55.6]}
7. a4 {[%clk 0:02:53.3]} 7... Rb8 {[%clk 0:02:55.2]} 8. Bc4 {[%clk 0:02:52]}
8... O-O {[%clk 0:02:50.9]} 9. O-O {[%clk 0:02:51.6]} 9... b6 {[%clk 0:02:44.8]}
10. Qd2 {[%clk 0:02:30.1]} 10... a6 {[%clk 0:02:39.8]} 11. b4 {[%clk 0:02:07.3]}
11... b5 {[%clk 0:02:37.8]} 12. axb5 {[%clk 0:02:08.2]} 12... axb5 {[%clk
0:02:38.4]} 13. Bb3 {[%clk 0:02:08.8]} 13... Qc7 {[%clk 0:02:37.5]} 14. Rfd1
{[%clk 0:01:54.4]} 14... Nb6 {[%clk 0:02:29.5]} 15. d5 {[%clk 0:01:18.9]} 15...
Nc4 {[%clk 0:02:16.1]} 16. Bxc4 {[%clk 0:01:16.2]} 16... bxc4 {[%clk 0:02:17]}
17. dxc6 {[%clk 0:01:12.6]} 17... Qxc6 {[%clk 0:02:13.5]} 18. b5 {[%clk
0:01:06.2]} 18... Qe8 {[%clk 0:02:05.6]} 19. Qe2 {[%clk 0:00:48]} 19... Be6
{[%clk 0:01:59.5]} 20. Ng5 {[%clk 0:00:47.3]} 20... Qc8 {[%clk 0:01:51.3]} 21.
Ra7 {[%clk 0:00:47.2]} 21... Re8 {[%clk 0:01:49.2]} 22. Nxe6 {[%clk 0:00:43.5]}
22... Qxe6 {[%clk 0:01:48.3]} 23. Nd5 {[%clk 0:00:44.1]} 23... Nxd5 {[%clk
0:01:28.1]} 24. Rxd5 {[%clk 0:00:31.4]} 24... Rec8 {[%clk 0:01:24.3]} 25. b6
{[%clk 0:00:28]} 25... Bd8 {[%clk 0:01:11.8]} 26. b7 {[%clk 0:00:28.3]} 26...
Rc7 {[%clk 0:01:06.9]} 27. Bb6 {[%clk 0:00:28.8]} 27... Rd7 {[%clk 0:00:55.2]}
28. Bxd8 {[%clk 0:00:20]} 28... Rdxd8 {[%clk 0:00:53.7]} 29. Qxc4 {[%clk
0:00:20.2]} 29... h5 {[%clk 0:00:46.9]} 30. Qa6 {[%clk 0:00:20.1]} 30... Qg6
{[%clk 0:00:40]} 31. Ra8 {[%clk 0:00:17.5]} 31... Qxe4 {[%clk 0:00:37]} 32. Rxb8
{[%clk 0:00:18]} 32... Rxb8 {[%clk 0:00:37.5]} 33. Qa7 {[%clk 0:00:16.7]} 33...
Qxd5 {[%clk 0:00:18.4]} 34. Qxb8+ {[%clk 0:00:17]} 34... Kh7 {[%clk 0:00:19.1]}
35. Qa7 {[%clk 0:00:17.2]} 35... Qd1+ {[%clk 0:00:13.6]} 36. Kh2 {[%clk
0:00:17.7]} 36... Qc1 {[%clk 0:00:11.2]} 37. Qe3 {[%clk 0:00:17.1]} 37... Qb2
{[%clk 0:00:09.3]} 38. Qb3 {[%clk 0:00:17.8]} 38... Qd4 {[%clk 0:00:05.5]} 39.
b8=Q {[%clk 0:00:17.2]} 39... Qf4+ {[%clk 0:00:06.4]} 40. Qg3 {[%clk 0:00:17.5]}
1-0